Cogmind - Beta 13 @@@ ROGUE MODE // 2024.05.02 @ 20:41:25 Player: NeoBoaz Result: Self-destructed Performance ------------- Evolutions (1) 500 Regions Visited (3) 600 Robots Destroyed (19) 95 Value Destroyed (589) 589 Prototype IDs (0) 0 Alien Tech Used (0) 0 Bonus (0) 0 TOTAL SCORE: 1784 Bonus ------- None Cogmind --------- Core Integrity 183/400 Matter 295/300 Energy 265/265 System Corruption 0% Temperature Cool (0) Movement Walking (120) Location -9/Storage Parts ------- > --- POWER (1) -------- Improved Ion Engine > --- PROPULSION (2) --- Aluminum Leg Improved Aluminum Leg > --- UTILITY (4) ------ Medium Storage Unit Machine Analyzer ECM Suite > --- WEAPON (2) ------- Particle Gun > --- INVENTORY (10) --- Light Ion Engine Weight Redist. System Structural Scanner Structural Scanner Sensor Array Medium Armor Plating Datajack Datajack Peak State ------------ > --- POWER ------------ Ion Engine > --- PROPULSION ------- Aluminum Leg Wheel > --- UTILITY ---------- Medium Storage Unit Machine Analyzer ECM Suite Recalibrator > --- WEAPON ----------- Beam Rifle Particle Gun > --- INVENTORY -------- Light Ion Engine Weight Redist. System Structural Scanner Structural Scanner Sensor Array Medium Armor Plating Datajack Datajack [Rating: 17] Favorites ----------- Power Ion Engine Engine Ion Engine Propulsion Aluminum Leg Leg Aluminum Leg Wheel Wheel Utility Medium Storage Unit Device ECM Suite Storage Medium Storage Unit Processor Machine Analyzer Protection Medium Armor Plating Weapon Particle Gun Energy Gun Particle Gun Special Melee Weapon Datajack Build | -11 -10 -9 -9 ------- Run | Yrd Mat Mat Sto Slots Evolved 2 | . . 2 . Power . | . . . . Propulsion . | . . . . Utility 2 | . . 2 . Weapon . | . . . . Parts Attached 43 | 5 15 10 13 Power 4 | 1 1 . 2 Engine 4 | 1 1 . 2 Core . | . . . . Reactor . | . . . . Propulsion 9 | 2 4 1 2 Treads . | . . . . Leg 6 | . 4 . 2 Wheel 3 | 2 . 1 . Hover . | . . . . Flight . | . . . . Utility 12 | 1 4 4 3 Device 6 | . 2 3 1 Storage 3 | 1 2 . . Processor 1 | . . . 1 Hackware . | . . . . Protection 2 | . . 1 1 Artifact . | . . . . Weapon 18 | 1 6 5 6 Energy Gun 12 | 1 4 3 4 Energy Cannon . | . . . . Ballistic Gun . | . . . . Ballistic Cannon . | . . . . Launcher . | . . . . Special Weapon . | . . . . Impact Weapon . | . . . . Slashing Weapon . | . . . . Piercing Weapon . | . . . . Special Melee Weapon 6 | . 2 2 2 Unidentified Prototypes . | . . . . Parts Lost 10 | . 5 1 4 Power 2 | . . . 2 Propulsion 3 | . 2 1 . Utility 2 | . 1 . 1 Weapon 3 | . 2 . 1 Highest Loss Streak 3 | . 3 1 2 To Critical Strikes . | . . . . Average Slot Usage (%) 93 | . 89 98 97 Engine 12 | . 14 11 10 Leg 15 | . 15 21 12 Wheel 8 | . 11 . 9 Device 19 | . 11 30 24 Storage 12 | . 14 11 11 Processor 1 | . . . 6 Energy Gun 17 | . 16 21 17 Special Melee Weapon 3 | . 5 . 3 Naked Turns . | . . . . Heaviest Build 31 | 12 27 29 31 Greatest Support 26 | 26 26 20 23 Greatest Overweight (x) 3 | . 1 2 3 Average Overweight (x) . | . . 1 1 Largest Inventory Capacity 15 | 8 15 10 10 Average Capacity 10 | 6 10 10 10 Most Carried 9 | 1 7 9 9 Average Carried 5 | . 4 7 7 Final Capacity 10 | 8 10 10 10 Final Carried 8 | 1 7 7 8 Class Distribution -------------------- 55% | Scavenger-Mutant 37% | Mutant 7% | Infiltrator-Mutant Dominant Class ---------------- Mutant | -10/Materials Scavenger-Mutant | -9/Materials Scavenger-Mutant | -9/Storage Resources | -11 -10 -9 -9 ----------- Run | Yrd Mat Mat Sto Matter Collected 559 | 224 129 98 108 Remotely . | . . . . Salvage Created 665 | . 324 98 243 Parts 38 | . 17 3 18 Haulers Intercepted 1 | . 1 . . Recyclers Shooed . | . . . . Parts Field Recycled . | . . . . Retrieved Matter . | . . . . Parts Self-Destructed . | . . . . Prevented . | . . . . Kills | -11 -10 -9 -9 ------- Run | Yrd Mat Mat Sto Combat Hostiles Destroyed 15 | . 8 2 5 Guns 10 | . 5 1 4 AOE 3 | . 3 . . Classes Destroyed 7 | . 5 1 1 Hauler 1 | . 1 . . Operator 1 | . 1 . . Watcher 2 | . 1 . 1 Swarmer 3 | . 3 . . Grunt 6 | . 5 . 1 Duelist 1 | . . . 1 Sentry 5 | . . 2 3 Best Kill Streak 3 | . 3 1 3 Combat Bots Only 3 | . 3 1 3 Max Kills in Single Turn 3 | . 3 1 1 Gunslinging . | . . . . Exploded 3 | . 3 . . Melee . | . . . . Uniques/NPCs Destroyed . | . . . . Combat | -11 -10 -9 -9 -------- Run | Yrd Mat Mat Sto Hostile Shots Fired 121 | . 59 24 38 Missed 33 | . 18 8 7 Damage Taken 1398 | . 611 240 547 Core 325 | . 108 75 142 Absorbed by Shields . | . . . . Core Remaining (%) 78 | 100 56 . . Volleys Fired 75 | . 44 6 25 Largest 2 | . 2 2 2 Hottest 121 | . 105 121 121 Shots Fired 102 | . 53 12 37 Gun 102 | . 53 12 37 Cannon . | . . . . Launcher . | . . . . Special . | . . . . Kinetic . | . . . . Thermal 98 | . 49 12 37 Explosive . | . . . . Electromagnetic 4 | . 4 . . Robot Hit Streak 11 | . 11 11 9 Robot Miss Streak 3 | . 3 . 3 Penetration Max . | . . . . Secondary Targets . | . . . . Shots Hit Robots 98 | . 56 13 29 Core Hits 31 | . 17 3 11 Critical Kills . | . . . . Critical Parts Destroyed . | . . . . Critical Strikes 6 | . 3 2 1 Burn 6 | . 3 2 1 Melee Attacks 23 | . 16 2 5 Impact . | . . . . Slashing . | . . . . Piercing . | . . . . Sneak Attacks 18 | . 12 2 4 Combat Hostiles . | . . . . Follow-up Attacks . | . . . . Damage Inflicted 1270 | . 743 172 355 Guns 1041 | . 524 162 355 Cannons . | . . . . Explosions 213 | . 213 . . Melee . | . . . . Ramming 16 | . 6 10 . Kinetic . | . . . . Thermal 1057 | . 540 162 355 Explosive 138 | . 138 . . Electromagnetic 59 | . 59 . . Impact . | . . . . Slashing . | . . . . Piercing . | . . . . Highest Corruption . | . . . . Average Corruption . | . . . . Corruption Purged . | . . . . Corruption Blocked . | . . . . Overload Shots . | . . . . Overflow Damage 84 | . 84 . . Projectiles . | . . . . Explosions 84 | . 84 . . Melee . | . . . . Knockbacks . | . . . . Impact . | . . . . Kinetic . | . . . . Secondary . | . . . . Self-Inflicted Damage 155 | . 150 5 . Shots 2 | . 2 . . Rammed 1 | . . 1 . Targets Rammed 5 | . 4 1 . Kicked 4 | . 4 . . Crushed . | . . . . Highest Temperature 269 | . 195 171 269 Average Temperature 81 | . 67 78 99 Received Heat Transfer 552 | . 243 126 183 Siege Activations . | . . . . Robots Corrupted . | . . . . Combat Hostiles . | . . . . Parts Fried . | . . . . Impact Corruptions . | . . . . Robots Melted 2 | . . 1 1 Combat Hostiles 2 | . . 1 1 Parts Melted 7 | . 3 2 2 Heat Transferred 3053 | . 1560 531 962 Parts Sabotaged . | . . . . Parts Stolen . | . . . . Parts Stripped . | . . . . Power Chain Reactions 1 | . 1 . . Alert | -11 -10 -9 -9 ------- Run | Yrd Mat Mat Sto Peak Influence 231 | . 231 157 147 Initial 62 | . . 62 . Average 80 | . 98 89 49 Maximum Alert Level 1 | . 1 . . Low Security (%) 96 | 100 92 100 100 Level 1 3 | . 7 . . Level 2 . | . . . . Level 3 . | . . . . Level 4 . | . . . . Level 5 . | . . . . High Security . | . . . . Max Security . | . . . . Squads Dispatched 2 | . 2 . . Investigation . | . . . . Extermination . | . . . . Reinforcement 2 | . 2 . . Assault . | . . . . Garrison . | . . . . Intercept . | . . . . Searches Triggered . | . . . . Construction Impeded . | . . . . Haulers Reinforced . | . . . . Active Scanning Responses . | . . . . Cargo Convoy Interrupts . | . . . . Stealth | -11 -10 -9 -9 --------- Run | Yrd Mat Mat Sto Distress Signals 4 | . 2 . 2 Communications Jammed . | . . . . Distress Signals . | . . . . Times Spotted 45 | . 27 4 14 Peak Tracking Total 4 | . 4 2 3 Tactical Retreats 6 | . 4 . 2 Traps | -11 -10 -9 -9 ------- Run | Yrd Mat Mat Sto Traps Triggered 3 | . . . 3 Indirectly . | . . . . Trap Hack Attempts . | . . . . Triggered . | . . . . Disarmed . | . . . . Reprogrammed . | . . . . Reused . | . . . . Traps Extracted . | . . . . Installed . | . . . . Triggered . | . . . . Machines | -11 -10 -9 -9 ---------- Run | Yrd Mat Mat Sto Machines Disabled 2 | . 2 . . Max in Single Turn 2 | . 2 . . Machines Repaired . | . . . . Machines Dismantled . | . . . . Machines Sabotaged . | . . . . Overloaded Fab Kills . | . . . . Hacking | -11 -10 -9 -9 --------- Run | Yrd Mat Mat Sto Machines Accessed 7 | . 4 . 3 Terminals 5 | . 3 . 2 Fabricators . | . . . . Repair Stations . | . . . . Recycling Units 2 | . 1 . 1 Scanalyzers . | . . . . Garrison Access . | . . . . Total Hacks 14 | . 9 . 5 Successful 4 | . 2 . 2 Failed 10 | . 7 . 3 Catastrophic 1 | . 1 . . Database Lockouts . | . . . . Manual 7 | . 5 . 2 Terminals 12 | . 8 . 4 Fabricators . | . . . . Repair Stations . | . . . . Recycling Units 2 | . 1 . 1 Scanalyzers . | . . . . Garrison Access . | . . . . Terminal Hacks 2 | . 1 . 1 Robot Analysis 1 | . . . 1 Zone Layout 1 | . 1 . . Fabricator Hacks . | . . . . Repair Station Hacks . | . . . . Recycling Unit Hacks 2 | . 1 . 1 Report Inventory 2 | . 1 . 1 Scanalyzer . | . . . . Garrison Access Hacks . | . . . . Unauthorized Hacks . | . . . . Terminals . | . . . . Fabricators . | . . . . Repair Stations . | . . . . Recycling Units . | . . . . Scanalyzers . | . . . . Garrison Access . | . . . . Data Cores Recovered 1 | . 1 . . Used . | . . . . Hacking Detections 7 | . 4 . 3 Full Trace Events . | . . . . Feedback Events . | . . . . Feedback Blocked . | . . . . Robot Schematics Acquired . | . . . . Robots Built . | . . . . Authchips . | . . . . Time . | . . . . Total Robot Build Rating . | . . . . Part Schematics Acquired . | . . . . Parts Built . | . . . . Authchips . | . . . . Time . | . . . . Total Part Build Rating . | . . . . Parts Repaired . | . . . . Time . | . . . . Parts Recycled . | . . . . Recycled Matter . | . . . . Retrieved Matter . | . . . . Retrieved Components . | . . . . Parts Scanalyzed . | . . . . Part Schematics Acquired . | . . . . Parts Damaged . | . . . . Bothacking | -11 -10 -9 -9 ------------ Run | Yrd Mat Mat Sto Used RIF Installer . | . . . . Robots Hacked 12 | . 9 1 2 Non-combat 12 | . 9 1 2 Combat . | . . . . Robot Hacks Applied 16 | . 12 1 3 parse_system 1 | . 1 . . no_distress 10 | . 8 1 1 find_recycling 2 | . 1 . 1 find_station 2 | . 1 . 1 check_alert 1 | . 1 . . Relay Couplers Released . | . . . . Fabnet Peak Effective % . | . . . . Robots Rewired . | . . . . Allies Hacked . | . . . . Hacks Repelled . | . . . . Allies | -11 -10 -9 -9 -------- Run | Yrd Mat Mat Sto Total Allies . | . . . . Largest Group . | . . . . Highest-Rated Group . | . . . . Highest-Rated Ally . | . . . . Total Orders . | . . . . Ally Attacks . | . . . . Total Damage . | . . . . Kills . | . . . . Allies Corrupted . | . . . . Allies Melted . | . . . . Intel | -11 -10 -9 -9 ------- Run | Yrd Mat Mat Sto Robot Analysis Total 1 | . . . 1 Derelict Logs Recovered . | . . . . Drone Launches . | . . . . Drone Recoveries . | . . . . Exploration | -11 -10 -9 -9 ------------- Run | Yrd Mat Mat Sto Turns Passed 2171 | 43 1064 408 656 Spaces Moved 1218 | 40 666 172 340 Core 3 | 3 . . . Treads . | . . . . Legs 514 | . 301 154 59 Wheels 701 | 37 365 18 281 Hover . | . . . . Flight . | . . . . Fastest Speed 50 | 50 90 110 95 Average Speed 122 | 86 113 182 114 Slowest Speed 260 | 90 190 260 260 Overloaded Moves . | . . . . Propulsion Burnouts . | . . . . Robots Hopped . | . . . . Cave-ins Triggered . | . . . . Exploration Rate (%) 28 | 3 62 12 38 Regions Visited 3 Branch Regions 1 Pre-discovered Areas . | . . . . Known Exits Taken . | . . . . Unknown Exits Taken 3 | 1 1 1 . Scrap Searched . | . . . . Spaces Dug . | . . . . Terrain Destroyed 41 | . 41 . . Melee . | . . . . Projectile . | . . . . AOE 41 | . 41 . . Terrain Rammed . | . . . . Walls Destroyed . | . . . . Machines Disabled . | . . . . Actions | -11 -10 -9 -9 --------- Run | Yrd Mat Mat Sto Total 1763 | 45 906 250 562 Wait 361 | . 147 56 158 Move 1215 | 39 665 171 340 Hop . | . . . . Pick Up 16 | 1 10 3 2 Fast Attach 15 | 5 6 1 3 Attach 7 | . 3 2 2 Detach 1 | . . . 1 Swap 21 | . 6 7 8 Drop 8 | . 5 1 2 Fire 75 | . 44 6 25 Melee 23 | . 16 2 5 Ram 1 | . . 1 . Kick 4 | . 4 . . Crush . | . . . . Escape Stasis 16 | . . . 16 Rewire . | . . . . Trap . | . . . . Miscellaneous . | . . . . Route ------- -11/Scrapyard -10/Materials (discovered 3 exits: [*Mat x2] / [Min]) -9/Materials -9/Storage History --------- Turn | Location | Event 16 | -11/Scrapyard | Discovered new exit (range 16) 44 | -11/Scrapyard | Entered Materials 315 | -10/Materials | Build established: Mutant 839 | -10/Materials | Discovered new exit (range 15) 839 | -10/Materials | Discovered new exit (range 18) 849 | -10/Materials | Lost 3 parts (1n1u1w) 862 | -10/Materials | Discovered new exit (range 11) 1108 | -10/Materials | Entered another Materials area 1108 | -9/Materials | Evolved 2 slots: Utility x2 1129 | -9/Materials | Build established: Scavenger-Mutant 1309 | -9/Materials | Discovered new exit (range 7) 1516 | -9/Materials | Entered Storage 2155 | -9/Storage | Core integrity fell below 50% 2172 | -9/Storage | Self-destructed Last Messages --------------- 02132_ >> Machine Analyzer network decryption results: 02132_ Terminal x1 02154_ G-34 Mercenary suffers critical hit (Burn). 02156_ G-34 Mercenary heat damages Aluminum Leg. 02161_ Triggered Explosive Trap. 02161_ An explosion rips through the floor. 02164_ G-34 Mercenary heat spikes uncontrollably. 02164_ Recalibrator destroyed. 02164_ >> Machine Analyzer network decryption results: 02164_ Terminal x2 02166_ G-34 Mercenary overheating. 02168_ G-34 Mercenary heat spikes uncontrollably. 02169_ U-05 Engineer lays Concrete. [A new version of Cogmind is available, see F1 News page.] Map ----- +----------------------------------------------------+ | ?????????????????????????????????????????????????? | | ??????????????????????????????"""????????????????? | | #?????????????????????????????"""????????????????? | | ###???????????????????????????"""????????????????? | | #???????????????????????????"""????????????????? | | #???????????????????????????"""????????????????? | | ##################### ??????????????????????? | | ##########################+##########+?????????? | | " # ??????????? | | # ??????????? | | ### """" """" """" ???????????? | | ########### """" """" """" #????????????? | | + # """" """" """" #????????????? | | # """""" #" """" """" """" #????????????? | | # "????"=#T """" """" """" #?????######## | | # "????"*#" ###### | | # """""" +% / = | | # %# ###### | | # =### #????? """ "" | | # ### ################## #?????? """ "" | | ############# ################# #?????? """ "" | | % #?## ##??????# #??????? ?? | | ! [! #?## ##??????# """"" g #???????#####? | | #?## ######### """"" ####?????????? | | #### ######### """"" ???? | | ####+##+##### # * ## @ l # ########??????? | | # ## """"" # #?????????????? | | # # """ ## """"" # #??????????""?? | | # # """ ## """"" # #??????????T"?? | | # + """ ## #####??????????""?? | | # ^ "" # ###"T"#####?????????????????? | | # """ ##############????????????????"""??? | | #+## R" ##### ?????????????????????"""??? | | # """ ##### """??????????"T"????????"""??? | | # ##### """ ?????"""?????????????????? | | + / """ ?? # """?????????????????? | | ##########+##### # """?????????????????? | | ######## ## """??? # ????????????????????? | | ##????## ##?"""??????????????????????????? | | #####????## [ ##?"""??????????????????????????? | | #####????## ][ ##??????????????????????????????? | | ????????? #########??????????????????????????????? | | ????????? ??????????????????????????????? | | ?????????????????????????????????????????????????? | | ?????????????????????????????????????????????????? | | ?????????????????????????????????????????????????? | | ???????????"""???????????????????????????????????? | | ???????????"T"???????????????????????????????????? | | ?????????????????????????????????????????????????? | | ?????????????????????????????????????????????????? | +----------------------------------------------------+ Best States ------------- Heat Dissipation 28 Energy Generation 12 Energy Capacity 265 Matter Stores 300 Matter Capacity 300 Sight Range 16 Robot Scan Range 14 Terrain Scan Density 10 ECM Strength 1 Armor Coverage 225 Evasion (%) 55 Item Schematics ----------------- None Robot Schematics ------------------ None Fabricated ------------ Nothing Alien Tech Used ----------------- None Achievements -------------- None Challenges ------------ None Game ------ Seed ClaymoresContainmentSpecial Manual? 0 Play Time 00:26:48 Cumulative 12.4 hours Start 2024.04.09 @ 18:57:51 End 2024.05.02 @ 20:41:25 Sessions 3 Manual Loads 0 Difficulty Rogue Special Mode None Game No. 16 Rogue 16 Adventurer 0 Explorer 0 Win Type - Total 0 Types 0/0/0/0/0/0/0/0/0 Lore% 17 Gallery% 17 Achievement% 19 Wizard Run 0 Options --------- Layout 1 ASCII 0 Keyboard 0 Movement Mouse Keybinds 0 Fullscreen 2 Font 24/Smallcaps Map View 50x35 Zoom Use 0% Tactical HUD 1 Map Filters NONE Filters NONE Steam 1 RUN: 34ea420b-98f6-441f-9f1c-b62ce8e08f53